fUSD/lending_fUSD_20260227
["ID","MTS","AMOUNT","RATE_DAILY","PERIOD"]
[406853031,1772235041934,-500.0,0.00013698,2]
[406853032,1772235041943,-500.0,0.00013698,2]
[406853033,1772235041952,-500.0,0.00013698,2]
[406853034,1772235041961,-500.0,0.00013698,2]
[406853035,1772235041971,-519.74655363,0.00013698,2]
[406853036,1772235041979,-500.0,0.00013698,2]
[406853037,1772235041988,-500.0,0.00013698,2]
[406853038,1772235041997,-500.0,0.00013698,2]
[406853039,1772235042006,-500.0,0.00013698,2]
[406853040,1772235042015,-153.30354988,0.00013698,2]
[406853041,1772235042024,-504.35511504,0.00013698,2]
[406853042,1772235042033,-500.0,0.00013698,2]
[406853043,1772235042043,-500.0,0.00013698,2]
[406853044,1772235042053,-500.0,0.00013698,2]
[406853045,1772235042062,-500.0,0.00013698,2]
[406853046,1772235042071,-500.0,0.00013698,2]
[406853047,1772235042080,-500.0,0.00013698,2]
[406853048,1772235042090,-500.0,0.00013698,2]
[406853049,1772235042100,-500.0,0.00013698,2]
[406853050,1772235042109,-500.0,0.00013698,2]
[406853051,1772235042118,-217.45849177,0.00013698,2]
[406853052,1772235042127,-500.0,0.00013698,2]
[406853053,1772235042136,-500.0,0.00013698,2]
[406853054,1772235042144,-500.0,0.00013698,2]
[406853055,1772235042154,-500.0,0.00013698,2]
[406853056,1772235042163,-500.0,0.00013698,2]
[406853057,1772235042172,-500.0,0.00013698,2]
[406853058,1772235042181,-500.0,0.00013698,2]
[406853059,1772235042190,-500.0,0.00013698,2]
[406853060,1772235042200,-500.0,0.00013698,2]
[406853061,1772235042209,-621.22,0.00013698,2]
[406853062,1772235042218,-621.22,0.00013698,2]
[406853063,1772235042228,-621.22,0.00013698,2]
[406853064,1772235042237,-621.22,0.00013698,2]
[406853065,1772235042246,-621.22,0.00013698,2]
[406853066,1772235042259,-621.22,0.00013698,2]
[406853067,1772235042268,-621.22,0.00013698,2]
[406853068,1772235042278,-621.22,0.00013698,2]
[406853069,1772235042286,-621.22,0.00013698,2]
[406853070,1772235042295,-500.0,0.00013698,2]
[406853071,1772235042305,-500.0,0.00013698,2]
[406853072,1772235042314,-500.0,0.00013698,2]
[406853073,1772235042324,-500.0,0.00013698,2]
[406853074,1772235042335,-500.0,0.00013698,2]
[406853075,1772235042346,-500.0,0.00013698,2]
[406853076,1772235042356,-500.0,0.00013698,2]
[406853077,1772235042367,-500.0,0.00013698,2]
[406853078,1772235042376,-636.48559846,0.00013698,2]
[406853079,1772235042385,-500.0,0.00013698,2]
[406853080,1772235042394,-500.0,0.00013698,2]
[406853081,1772235042404,-500.0,0.00013698,2]
[406853082,1772235042414,-500.0,0.00013698,2]
[406853083,1772235042424,-500.0,0.00013698,2]
[406853084,1772235042433,-500.0,0.00013698,2]
[406853085,1772235042442,-500.0,0.00013698,2]
[406853086,1772235042451,-500.0,0.00013698,2]
[406853087,1772235042461,-500.0,0.00013698,2]
[406853088,1772235042471,-500.0,0.00013698,2]
[406853089,1772235042482,-500.0,0.00013698,2]
[406853090,1772235042493,-500.0,0.00013698,2]
[406853091,1772235042503,-500.0,0.00013698,2]
[406853092,1772235042513,-500.0,0.00013698,2]
[406853093,1772235042524,-500.0,0.00013698,2]
[406853094,1772235042533,-500.0,0.00013698,2]
[406853095,1772235042542,-500.0,0.00013698,2]
[406853096,1772235042553,-500.0,0.00013698,2]
[406853098,1772235042562,-500.0,0.00013698,2]
[406853099,1772235042571,-500.0,0.00013698,2]
[406853100,1772235042580,-500.0,0.00013698,2]
[406853101,1772235042589,-500.0,0.00013698,2]
[406853102,1772235042598,-432.44397161,0.00013698,2]
[406853103,1772235042607,-587.0377833,0.00013698,2]
[406853104,1772235042616,-500.0,0.00013698,2]
[406853105,1772235042625,-500.0,0.00013698,2]
[406853106,1772235042634,-500.0,0.00013698,2]
[406853108,1772235042644,-500.0,0.00013698,2]
[406853109,1772235042653,-500.0,0.00013698,2]
[406853111,1772235042662,-210.48,0.00013698,2]
[406853113,1772235042671,-842.63,0.00013699,2]
[406853115,1772235042680,-500.0,0.00013699,2]
[406853116,1772235042689,-500.0,0.00013699,2]
[406853118,1772235042699,-500.0,0.00013699,2]
[406853120,1772235042708,-526.85264,0.00013699,2]
[406853121,1772235042717,-502.28503114,0.00013699,2]
[406853122,1772235042726,-500.0,0.00013699,2]
[406853123,1772235042736,-500.0,0.00013699,2]
[406853124,1772235042745,-500.0,0.00013699,2]
[406853125,1772235042754,-500.0,0.00013699,2]
[406853126,1772235042763,-500.0,0.00013699,2]
[406853127,1772235042772,-500.0,0.00013699,2]
[406853128,1772235042782,-500.0,0.00013699,2]
[406853129,1772235042791,-500.0,0.00013699,2]
[406853130,1772235042800,-500.0,0.00013699,2]
[406853131,1772235042809,-500.0,0.00013699,2]
[406853132,1772235042819,-500.0,0.00013699,2]
[406853133,1772235042827,-500.0,0.00013699,2]
[406853134,1772235042837,-500.0,0.00013699,2]
[406853135,1772235042846,-500.0,0.00013699,2]
[406853136,1772235042855,-500.0,0.00013699,2]
[406853137,1772235042864,-500.0,0.00013699,2]
[406853138,1772235042873,-164.29010834,0.00013699,2]
[406853139,1772235042883,-500.0,0.00013699,2]
[406853140,1772235042892,-500.0,0.00013699,2]
[406853141,1772235042900,-500.0,0.00013699,2]
[406853142,1772235042909,-500.0,0.00013699,2]
[406853143,1772235042918,-500.0,0.00013699,2]
[406853144,1772235042927,-500.0,0.00013699,2]
[406853145,1772235042936,-500.0,0.00013699,2]
[406853146,1772235042945,-500.0,0.00013699,2]
[406853147,1772235042954,-507.14846603,0.00013699,2]
[406853148,1772235042963,-500.0,0.00013699,2]
[406853149,1772235042972,-500.0,0.00013699,2]
[406853150,1772235042981,-500.0,0.00013699,2]
[406853151,1772235042990,-500.0,0.00013699,2]
[406853152,1772235042999,-288.09474142,0.00013699,2]
[406853153,1772235043008,-310.9054072,0.00013699,2]
[406853154,1772235043017,-295.80767039,0.00013699,2]
[406853155,1772235043026,-161.8,0.000137,2]
[406853157,1772235043035,-508.0,0.0001411,2]
[406853159,1772235043044,-210.35803691,0.00014147,2]
[406853160,1772235043053,-1000.0,0.00014247,2]
[406853161,1772235043062,-687.41667409,0.00014247,2]
[406853162,1772235043071,-1000.0,0.00014247,2]
[406853163,1772235043080,-1000.0,0.00014247,2]
[406853164,1772235043093,-1000.0,0.00014247,2]
[406853165,1772235043102,-1000.0,0.00014247,2]
[406853166,1772235043112,-1000.0,0.00014247,2]
[406853167,1772235043121,-1000.0,0.00014247,2]
[406853169,1772235043130,-1000.0,0.00014247,2]
[406853170,1772235043140,-1000.0,0.00014247,2]
[406853171,1772235043149,-1000.0,0.00014247,2]
[406853172,1772235043159,-509.93232969,0.00014247,2]
[406853173,1772235043168,-1000.0,0.00014247,2]
[406853174,1772235043177,-1000.0,0.00014247,2]
[406853175,1772235043186,-1008.10480934,0.00014247,2]
[406853176,1772235043195,-512.76163768,0.00014247,2]
[406853177,1772235043204,-1000.0,0.00014247,2]
[406853178,1772235043213,-1000.0,0.00014247,2]
[406853179,1772235043223,-1000.0,0.00014247,2]
[406853180,1772235043233,-1000.0,0.00014247,2]
[406853181,1772235043242,-1000.0,0.00014247,2]
[406853182,1772235043254,-1000.0,0.00014247,2]
[406853183,1772235043265,-1000.0,0.00014247,2]
[406853184,1772235043274,-1000.0,0.00014247,2]
[406853185,1772235043283,-1000.0,0.00014247,2]
[406853186,1772235043292,-1000.0,0.00014247,2]
[406853187,1772235043302,-1000.0,0.00014247,2]
[406853188,1772235043311,-4757.69741976,0.00014407,2]
[406853189,1772235043320,-28057.84474408,0.00014486,2]
[406853190,1772235043330,-2061.97789442,0.00014507,2]
[406853191,1772235043339,-151.0,0.00014634,2]
[406853192,1772235043348,-151.0,0.00014634,2]
[406853193,1772235043357,-12723.5155952,0.00014695,2]
[406853194,1772235043366,-500.0,0.00014794,2]
[406853195,1772235043375,-500.0,0.00014794,2]
[406853196,1772235043384,-429.49570382,0.00014795,2]
[406853197,1772235043393,-1500.0,0.00014795,2]
[406853198,1772235043402,-1500.0,0.00014795,2]
[406853199,1772235043411,-1500.0,0.00014795,2]
[406853200,1772235043420,-1144.44196517,0.00014795,2]
[406853201,1772235043428,-1500.0,0.00014795,2]
[406853202,1772235043437,-1500.0,0.00014795,2]
[406853203,1772235043446,-1511.45189164,0.00014795,2]
[406853204,1772235043455,-1147.84261484,0.00014795,2]
[406853205,1772235043463,-1500.0,0.00014795,2]
[406853206,1772235043474,-1500.0,0.00014795,2]
[406853207,1772235043483,-1500.0,0.00014795,2]
[406853208,1772235043492,-1500.0,0.00014795,2]
[406853209,1772235043501,-1500.0,0.00014795,2]
[406853210,1772235043510,-741.17434169,0.00014795,2]
[406853211,1772235043520,-1500.0,0.00014795,2]
[406853212,1772235043529,-1500.0,0.00014795,2]
[406853213,1772235043539,-1500.0,0.00014795,2]
[406853214,1772235043549,-1500.0,0.00014795,2]
[406853215,1772235043559,-1597.09510233,0.00014795,2]
[406853216,1772235043569,-1500.0,0.00014795,2]
[406853217,1772235043578,-1500.0,0.00014795,2]
[406853218,1772235043587,-1500.0,0.00014795,2]
[406853219,1772235043596,-9984.67,0.00014853,2]
[406853220,1772235043605,-50000.0,0.0001486,2]
[406853221,1772235043614,-169.39470199,0.000149,2]
[406853222,1772235043623,-169.39470198,0.000149,2]
[406853223,1772235043633,-169.39470198,0.000149,2]
[406853224,1772235043641,-3700.0,0.000149,5]
[406853225,1772235043650,-2538.79789295,0.00014974,2]
[406853226,1772235043659,-250.0,0.00015,2]
[406853227,1772235043668,-227.216587,0.00015046,7]
[406853228,1772235043676,-462.08,0.00015068,2]
[406853229,1772235043685,-266.65,0.00015068,2]
[406853230,1772235043695,-455.84702,0.000152,7]
[406853231,1772235043704,-4850.612573,0.000152,7]
[406853232,1772235043713,-9999.99,0.0001531,2]
[406853233,1772235043722,-902.4,0.0001531,2]
[406853234,1772235043731,-29999.99,0.0001531,2]
[406853235,1772235043740,-462.08,0.00015342,2]
[406853236,1772235043749,-247.77184833,0.00015342,2]
[406853237,1772235043759,-2000.0,0.00015342,2]
[406853238,1772235043768,-1516.10263761,0.00015342,2]
[406853239,1772235043777,-1000.0,0.00015342,2]
[406853240,1772235043786,-215.41849404,0.00015342,2]
[406853241,1772235043795,-203.52805437,0.00015342,2]
[406853242,1772235043805,-2000.0,0.00015342,2]
[406853243,1772235043816,-2000.0,0.00015342,2]
[406853244,1772235043826,-2000.0,0.00015342,2]
[406853245,1772235043835,-1614.542994,0.00015342,2]
[406853246,1772235043846,-538.67533251,0.00015342,2]
[406853247,1772235043856,-1505.60534384,0.00015342,2]
[406853248,1772235043868,-2000.0,0.00015342,2]
[406853249,1772235043879,-2000.0,0.00015342,2]
[406853250,1772235043888,-2000.0,0.00015342,2]
[406853251,1772235043898,-1201.13446519,0.00015342,2]
[406853252,1772235043907,-2000.0,0.00015342,2]
[406853253,1772235043917,-1600.0,0.00015375,2]
[406853254,1772235043926,-174.00015664,0.00015426,2]
[406853255,1772235043935,-160.0,0.00015426,2]
[406853256,1772235043944,-550.5,0.00015616,2]
[406853257,1772235043954,-28057.84474408,0.00015624,2]
[406853258,1772235043963,-2061.97789442,0.00015638,2]
[406853259,1772235043972,-2500.0,0.0001589,2]
[406853260,1772235043981,-2500.0,0.0001589,2]
[406853261,1772235043991,-2028.27485084,0.0001589,2]
[406853262,1772235044000,-708.62062,0.0001589,2]
[406853263,1772235044009,-1005.53161927,0.0001589,2]
[406853264,1772235044019,-1023.31974037,0.0001589,2]
[406853265,1772235044028,-2275.06944665,0.0001589,2]
[406853266,1772235044038,-2500.0,0.0001589,2]
[406853267,1772235044171,-5000.0,0.0001596,2]
[406853268,1772235044180,-9999.99,0.00016116,2]
[406853269,1772235044189,-1000.0,0.00016427,7]
[406853270,1772235044198,-2538.79789295,0.00016437,2]
[406853271,1772235044208,-813.0,0.00016438,2]
[406853272,1772235044216,-266.68789925,0.00016438,2]
[406853273,1772235044226,-2291.80881226,0.00016438,2]
[406853274,1772235044235,-1484.08045004,0.00016438,2]
[406853275,1772235044244,-3000.0,0.00016438,2]
[406853276,1772235044256,-813.0,0.00016493,2]
[406853277,1772235044266,-813.0,0.00016548,2]
[406853278,1772235044275,-813.0,0.00016602,2]
[406853279,1772235044284,-813.0,0.00016657,2]
[406853280,1772235044295,-813.0,0.00016712,2]
[406853281,1772235044304,-28057.84474408,0.00016762,2]
[406853282,1772235044313,-813.0,0.00016767,2]
[406853283,1772235044322,-2061.97789442,0.00016769,2]
[406853284,1772235044332,-813.0,0.00016822,2]
[406853285,1772235044342,-304.59,0.00016871,2]
[406853286,1772235044351,-813.0,0.00016876,2]
[406853287,1772235044361,-813.0,0.00016931,2]
[406853288,1772235044370,-813.0,0.00016986,2]
[406853289,1772235044380,-3500.0,0.00016986,2]
[406853290,1772235044390,-168.0,0.00016997,2]
[406853291,1772235044399,-300.0,0.00017,2]
[406853292,1772235044410,-813.0,0.00017041,2]
[406853293,1772235044420,-813.0,0.00017096,2]
[406853294,1772235044430,-813.0,0.0001715,2]
[406853295,1772235044441,-168.0,0.00017171,2]
[406853296,1772235044452,-813.0,0.00017205,2]
[406853297,1772235044461,-813.0,0.0001726,2]
[406853298,1772235044471,-150.0,0.0001727,2]
[406853299,1772235044480,-150.0,0.0001727,2]
[406853300,1772235044490,-500.0,0.00017296,2]
[406853301,1772235044500,-500.0,0.00017296,2]
[406853302,1772235044509,-621.22,0.00017296,2]
[406853303,1772235044518,-500.0,0.00017296,2]
[406853304,1772235044528,-500.0,0.00017296,2]
[406853305,1772235044537,-1600.0,0.00017297,2]
[406853306,1772235044547,-813.0,0.00017315,2]
[406853307,1772235044556,-283.90698305,0.00017325,2]
[406853308,1772235044565,-813.0,0.0001737,2]
[406853309,1772235044576,-813.0,0.00017424,2]
[406853310,1772235044586,-813.0,0.00017479,2]
[406853311,1772235044596,-813.0,0.00017534,2]
[406853312,1772235044605,-3974.15344995,0.00017534,2]
[406853313,1772235044615,-200.0,0.00017556,2]
[406853314,1772235044625,-813.0,0.00017589,2]
[406853315,1772235044636,-2000.0,0.0001759,2]
[406853316,1772235044645,-1043.14431485,0.0001764,2]
[406853317,1772235044655,-1123.21043215,0.0001764,2]
[406853318,1772235044664,-1138.00586907,0.0001764,2]
[406853319,1772235044674,-1122.52951953,0.0001764,2]
[406853320,1772235044683,-1125.49084989,0.0001764,2]
[406853321,1772235044692,-1064.34718646,0.0001764,2]
[406853322,1772235044701,-1130.00072003,0.0001764,2]
[406853323,1772235044710,-1084.30375359,0.0001764,2]
[406853324,1772235044719,-1028.96707717,0.0001764,2]
[406853325,1772235044728,-1039.18427467,0.0001764,2]
[406853326,1772235044738,-1027.87974782,0.0001764,2]
[406853327,1772235044747,-1084.5119662,0.0001764,2]
[406853328,1772235044756,-1071.94006684,0.0001764,2]
[406853329,1772235044767,-1115.64375929,0.0001764,2]
[406853330,1772235044776,-1021.32120096,0.0001764,2]
[406853331,1772235044785,-1017.51141125,0.0001764,2]
[406853332,1772235044794,-1059.2374809,0.0001764,2]
[406853333,1772235044803,-1011.214309,0.0001764,2]
[406853334,1772235044812,-1081.4789689,0.0001764,2]
[406853335,1772235044821,-1102.8992872,0.0001764,2]
[406853336,1772235044830,-1015.61589613,0.0001764,2]
[406853337,1772235044839,-1113.93275214,0.0001764,2]
[406853338,1772235044848,-1975.48355684,0.0001764,2]
[406853339,1772235044856,-813.0,0.00017643,2]
[406853340,1772235044865,-2000.0,0.0001769,2]
[406853341,1772235044875,-823.0,0.00017698,2]
[406853342,1772235044884,-4600.0,0.000177,6]
[406853343,1772235044893,-2000.0,0.0001779,2]
[406853344,1772235044904,-900.0,0.000178,6]
[406853345,1772235044913,-5000.0,0.00017808,2]
[406853346,1772235044922,-500.0,0.00017808,2]
[406853347,1772235044932,-500.0,0.00017808,2]
[406853348,1772235044941,-500.0,0.00017808,2]
[406853349,1772235044950,-500.0,0.00017808,2]
[406853350,1772235044959,-500.0,0.00017808,2]
[406853351,1772235044968,-500.0,0.00017808,2]
[406853352,1772235044977,-500.0,0.00017808,2]
[406853353,1772235044986,-500.0,0.00017808,2]
[406853354,1772235044995,-500.0,0.00017808,2]
[406853355,1772235045005,-500.0,0.00017808,2]
[406853356,1772235045014,-500.0,0.00017808,2]
[406853357,1772235045023,-578.80456942,0.00017808,2]
[406853358,1772235045031,-500.0,0.00017808,2]
[406853359,1772235045041,-500.0,0.00017808,2]
[406853360,1772235045050,-500.0,0.00017808,2]
[406853361,1772235045059,-500.0,0.00017808,2]
[406853362,1772235045068,-505.16319859,0.00017808,2]
[406853363,1772235045077,-800.0,0.00017808,2]
[406853364,1772235045087,-137550.62068451,0.0001783,2]
[406853365,1772235045096,-500.0,0.00017899,2]
[406853366,1772235045105,-500.0,0.00017899,2]
[406853367,1772235045115,-500.0,0.00017899,3]
[406853368,1772235045125,-500.0,0.00017899,3]
[406853369,1772235045135,-500.0,0.00017899,3]
[406853370,1772235045144,-500.0,0.00017899,3]
[406853371,1772235045154,-500.0,0.00017899,3]
[406853372,1772235045163,-500.0,0.00017899,3]
[406853373,1772235045172,-500.0,0.00017899,3]
[406853374,1772235045181,-500.0,0.00017899,3]
[406853375,1772235045190,-500.0,0.00017899,3]
[406853376,1772235045199,-500.0,0.00017899,3]
[406853377,1772235045208,-500.0,0.00017899,3]
[406853378,1772235045217,-500.0,0.00017899,3]
[406853379,1772235045226,-500.0,0.00017899,3]
[406853380,1772235045236,-500.0,0.00017899,3]
[406853381,1772235045245,-151.0,0.00017899,3]
[406853382,1772235045257,-151.0,0.00017899,3]
[406853383,1772235045266,-500.0,0.00017899,3]
[406853384,1772235045276,-151.0,0.00017899,3]
[406853385,1772235045286,-500.0,0.00017899,3]
[406853386,1772235045295,-151.0,0.00017899,3]
[406853387,1772235045304,-151.0,0.00017899,3]
[406853388,1772235045314,-500.0,0.00017899,3]
[406853389,1772235045324,-151.0,0.00017899,3]
[406853390,1772235045333,-500.0,0.00017899,3]
[406853391,1772235045342,-151.0,0.00017899,3]
[406853392,1772235045351,-500.0,0.00017899,3]
[406853393,1772235045360,-151.0,0.00017899,3]
[406853394,1772235045370,-500.0,0.00017899,3]
[406853395,1772235045380,-151.0,0.00017899,3]
[406853396,1772235045389,-500.0,0.00017899,3]
[406853397,1772235045399,-151.0,0.00017899,3]
[406853398,1772235045408,-500.0,0.00017899,3]
[406853399,1772235045419,-151.0,0.00017899,3]
[406853400,1772235045429,-500.0,0.00017899,3]
[406853402,1772235045438,-151.0,0.00017899,3]
[406853403,1772235045447,-500.0,0.00017899,3]
[406853404,1772235045457,-151.0,0.00017899,3]
[406853405,1772235045467,-500.0,0.00017899,3]
[406853406,1772235045477,-500.0,0.00017899,3]
[406853407,1772235045487,-500.0,0.00017899,3]
[406853408,1772235045498,-1390.36857003,0.000179,2]
[406853409,1772235045509,-2061.97789442,0.000179,2]
[406853410,1772235045519,-900.0,0.000179,6]
[406853411,1772235045528,-2538.79789295,0.000179,2]
[406853412,1772235045539,-28057.84474408,0.000179,2]
[406853413,1772235045548,-503.03652017,0.00017982,2]
[406853414,1772235045558,-2026.47664966,0.00017988,2]
[406853415,1772235045567,-2026.47664966,0.0001799,2]
[406853416,1772235045577,-151.0,0.00017995,2]
[406853417,1772235045586,-151.0,0.00017997,2]
[406853419,1772235045596,-102752.8104026,0.00017998,2]
[406853420,1772235045605,-6509.1536477,0.00017998,2]
[406853421,1772235045615,-294173.4556644,0.00017998,2]
[406853422,1772235045624,-19527.4609429,0.00017998,2]
[406853423,1772235045634,-500.0,0.00017999,2]
[406853424,1772235045643,-500.0,0.00017999,2]
[406853425,1772235045652,-500.0,0.00017999,2]
[406853426,1772235045662,-500.0,0.00017999,2]
[406853427,1772235045671,-500.0,0.00017999,2]
[406853428,1772235045681,-500.0,0.00017999,2]
[406853429,1772235045692,-500.0,0.00017999,2]
[406853430,1772235045702,-500.0,0.00017999,2]
[406853431,1772235045711,-500.0,0.00017999,2]
[406853432,1772235045722,-636.77928561,0.00017999,2]
[406853433,1772235045732,-1112.3891081,0.00017999,5]
[406853434,1772235045742,-589.57625125,0.00017999,2]
[406853435,1772235045751,-750.0,0.00017999,2]
[406853436,1772235045760,-750.0,0.00017999,2]
[406853437,1772235045770,-750.0,0.00017999,2]
[406853438,1772235045779,-750.0,0.00017999,2]
[406853439,1772235045788,-750.0,0.00017999,2]
[406853440,1772235045798,-750.0,0.00017999,2]
[406853441,1772235045809,-750.0,0.00017999,2]
[406853442,1772235045818,-750.0,0.00017999,2]
[406853443,1772235045827,-750.0,0.00017999,2]
[406853444,1772235045836,-750.0,0.00017999,2]
[406853445,1772235045846,-750.0,0.00017999,2]
[406853446,1772235045856,-750.0,0.00017999,2]
[406853447,1772235045865,-750.0,0.00017999,2]
[406853448,1772235045875,-750.0,0.00017999,2]
[406853449,1772235045885,-750.0,0.00017999,2]
[406853450,1772235045894,-300.0,0.00017999,2]
[406853451,1772235045903,-500.0,0.00017999,2]
[406853452,1772235045912,-631.14340271,0.00017999,2]
[406853453,1772235045922,-500.0,0.00017999,2]
[406853454,1772235045932,-500.0,0.00017999,2]
[406853455,1772235045942,-500.0,0.00017999,2]
[406853456,1772235045951,-500.0,0.00017999,2]
[406853457,1772235045961,-500.0,0.00017999,2]
[406853458,1772235045970,-500.0,0.00017999,2]
[406853459,1772235045979,-500.0,0.00017999,2]
[406853460,1772235045988,-500.0,0.00017999,2]
[406853461,1772235045998,-500.0,0.00017999,2]
[406853462,1772235046007,-500.0,0.00017999,2]
[406853463,1772235046016,-500.0,0.00017999,2]
[406853464,1772235046026,-500.0,0.00017999,2]
[406853465,1772235046035,-522.57762627,0.00017999,2]
[406853467,1772235046045,-313.34247632,0.00017999,2]
[406853468,1772235046055,-500.0,0.00017999,2]
[406853469,1772235046064,-500.0,0.00017999,2]
[406853470,1772235046074,-500.0,0.00017999,2]
[406853471,1772235046083,-500.0,0.00017999,2]
[406853472,1772235046092,-500.0,0.00017999,2]
[406853474,1772235046101,-500.0,0.00017999,2]
[406853475,1772235046110,-492.57649127,0.00017999,2]
[406853477,1772235046120,-621.22,0.00017999,2]
[406853478,1772235046131,-621.22,0.00017999,2]
[406853479,1772235046140,-621.22,0.00017999,2]
[406853480,1772235046151,-621.22,0.00017999,2]
[406853481,1772235046160,-621.22,0.00017999,2]
[406853482,1772235046171,-621.22,0.00017999,2]
[406853483,1772235046181,-621.22,0.00017999,2]
[406853484,1772235046190,-621.22,0.00017999,2]
[406853485,1772235046199,-621.22,0.00017999,2]
[406853486,1772235046209,-621.22,0.00017999,2]
[406853487,1772235046218,-621.22,0.00017999,2]
[406853488,1772235046227,-621.22,0.00017999,2]
[406853489,1772235046237,-621.22,0.00017999,2]
[406853490,1772235046246,-621.45282882,0.00017999,2]
[406853491,1772235046258,-500.0,0.00017999,2]
[406853492,1772235046267,-500.0,0.00017999,2]
[406853493,1772235046276,-500.0,0.00017999,2]
[406853494,1772235046285,-500.0,0.00017999,2]
[406853495,1772235046295,-173.81708552,0.00017999,2]
[406853496,1772235046304,-180.14,0.00017999,2]
[406853497,1772235046314,-300.0,0.00017999,2]
[406853498,1772235046323,-300.0,0.00017999,2]
[406853499,1772235046332,-286.61762734,0.00017999,2]
[406853500,1772235046341,-300.0,0.00017999,2]
[406853501,1772235046350,-194.04859862,0.00017999,2]
[406853503,1772235046359,-5780114.74237834,0.00018,2]
[406853505,1772235046436,-9894.0,0.00018,2]
[406853506,1772235046447,-1274.14311857,0.00018,2]
[406853507,1772235046465,-548.81282797,0.00018,2]
[406853508,1772235046477,-551.23461624,0.00018,2]
[406853509,1772235046493,-725.5,0.00018,2]
[406853510,1772235046504,-315.041611,0.00018,2]
[406853511,1772235046515,-335.38,0.00018,2]
[406853512,1772235046525,-142876.86613035,0.00018,2]
[406853513,1772235046536,-1094.33412129,0.00018,2]
[406853514,1772235046556,-13650.11336105,0.00018,2]
[406853515,1772235046578,-1259.5,0.00018,2]
[406853520,1772235801014,875.54,5.698e-05,2]
[406853521,1772235801215,875.54,5.943e-05,2]
[406853522,1772235801417,875.54,6.189e-05,2]
[406853523,1772235801620,875.54,6.434e-05,2]
[406853524,1772235801811,875.54,6.679e-05,2]
[406853525,1772235802024,875.54,6.925e-05,2]
[406853526,1772235802226,875.54,7.17e-05,2]
[406853527,1772235874090,-995.378,7.368e-05,2]
[406853528,1772235874112,-150.154,7.368e-05,2]
[406853529,1772235874135,-1518.64626415,7.4e-05,2]
[406853530,1772235874159,-7531.93259084,7.4e-05,2]
[406853531,1772235874183,-3034.60891211,7.4e-05,2]
[406853532,1772235874204,-875.54,7.415e-05,2]
[406853533,1772235888318,-250.0,7.434e-05,2]
[406853534,1772235888339,-218.05,7.483e-05,2]
[406853535,1772235893727,-31.95,7.483e-05,2]
[406853536,1772235893749,-255.05,7.5e-05,2]
[406853537,1772235893770,-181.05,7.5e-05,2]
[406853538,1772235939552,1176.7402329,7.4e-05,2]
[406853540,1772236231748,-300.0,7.299e-05,2]
[406853541,1772236231758,-1200.0,7.299e-05,2]
[406853542,1772236231767,-212.0,7.299e-05,2]
[406853543,1772236231776,-1761.5427536,7.3e-05,2]
[406853544,1772236231785,-1754.43238393,7.3e-05,2]
[406853545,1772236231797,-256.43587715,7.3e-05,2]
[406853546,1772236231808,-2891.03665945,7.3e-05,2]
[406853547,1772236231818,-150.0,7.399e-05,2]
[406853548,1772236231827,-6677.00021912,7.4e-05,2]
[406853549,1772236231836,-26717.04717875,7.4e-05,2]
[406853550,1772236231846,-16386.68507079,7.4e-05,2]
[406853551,1772236231855,-27006.14298854,7.4e-05,2]
[406853552,1772236231865,-21176.48740635,7.4e-05,2]